[Event "Titled Tuesday Blitz March 28 Early 2023"]
[White "Karthik Sai Ch"]
[Black "Salman, Pavel"]
[WhiteFideId "46649484"]
[BlackFideId "24153753"]
[WhiteElo "2003"]
[BlackElo "2187"]
[Result "0-1"]
[Round "11"]
[TimeControl "180+2"]
[Date "2023.03.28"]
[WhiteClock "0:00:14"]
[BlackClock "0:01:17"]

1. d4 {[%clk 0:02:53]}  g6 {[%clk 0:03:00]} 2. e4 {[%clk 0:02:53]}  Bg7 {[%clk 0:03:01]} 3. Nf3 {[%clk 0:02:53]}  d6 {[%clk 0:03:01]} 4. Nc3 {[%clk 0:02:53]}  Nf6 {[%clk 0:03:02]} 5. Be2 {[%clk 0:02:53]}  O-O {[%clk 0:03:02]} 6. O-O {[%clk 0:02:54]}  Nc6 {[%clk 0:03:02]} 7. d5 {[%clk 0:02:53]}  Nb8 {[%clk 0:03:03]} 8. h3 {[%clk 0:02:52]}  c6 {[%clk 0:03:04]} 9. a4 {[%clk 0:02:50]}  Nbd7 {[%clk 0:03:04]} 10. a5 {[%clk 0:02:48]}  Nc5 {[%clk 0:03:04]} 11. dxc6 {[%clk 0:02:25]}  bxc6 {[%clk 0:03:03]} 12. e5 {[%clk 0:02:24]}  Nfe4 {[%clk 0:02:56]} 13. Nxe4 {[%clk 0:02:17]}  Nxe4 {[%clk 0:02:57]} 14. exd6 {[%clk 0:02:16]}  exd6 {[%clk 0:02:56]} 15. c3 {[%clk 0:02:15]}  d5 {[%clk 0:02:55]} 16. Be3 {[%clk 0:02:11]}  Re8 {[%clk 0:02:55]} 17. Qa4 {[%clk 0:02:05]}  Bd7 {[%clk 0:02:52]} 18. Qa3 {[%clk 0:02:05]}  Qc7 {[%clk 0:02:49]} 19. Rfd1 {[%clk 0:01:52]}  Bf8 {[%clk 0:02:44]} 20. b4 {[%clk 0:01:50]}  Bd6 {[%clk 0:02:40]} 21. c4 {[%clk 0:01:42]}  Rab8 {[%clk 0:02:31]} 22. c5 {[%clk 0:01:40]}  Bf8 {[%clk 0:02:30]} 23. Bd3 {[%clk 0:01:27]}  Bg7 {[%clk 0:02:27]} 24. Rac1 {[%clk 0:01:25]}  Re7 {[%clk 0:02:15]} 25. b5 {[%clk 0:01:05]}  cxb5 {[%clk 0:02:13]} 26. c6 {[%clk 0:01:05]}  Bf5 {[%clk 0:02:11]} 27. Bxe4 {[%clk 0:00:57]}  Rxe4 {[%clk 0:02:06]} 28. Rxd5 {[%clk 0:00:54]}  Ra4 {[%clk 0:02:05]} 29. Qc5 {[%clk 0:00:43]}  Bf8 {[%clk 0:01:54]} 30. Qxa7 {[%clk 0:00:41]}  Bd6 {[%clk 0:01:39]} 31. Bb6 {[%clk 0:00:29]}  Qxc6 {[%clk 0:01:22]} 32. Rcd1 {[%clk 0:00:15]}  Qxd5 {[%clk 0:01:17]} 33. Qxb8+ {[%clk 0:00:13]}  Bxb8 {[%clk 0:01:17]} 34. Rxd5 {[%clk 0:00:14]}  Ra1+ {[%clk 0:01:17]} 0-1


[Site "https://www.chess.com"]

[Event "Titled Tuesday Blitz March 28 Early 2023"]
[White "Bogaudinov, Rushan"]
[Black "Abdilkhair, Abilmansur"]
[WhiteFideId "4129288"]
[BlackFideId "13716417"]
[WhiteElo "1949"]
[BlackElo "2216"]
[Result "0-1"]
[Round "11"]
[TimeControl "180+2"]
[Date "2023.03.28"]
[WhiteClock "0:00:44"]
[BlackClock "0:00:45"]

1. d4 {[%clk 0:03:00]}  Nf6 {[%clk 0:02:58]} 2. g3 {[%clk 0:03:01]}  e6 {[%clk 0:02:59]} 3. Bg2 {[%clk 0:03:01]}  d5 {[%clk 0:02:59]} 4. Nf3 {[%clk 0:03:02]}  Be7 {[%clk 0:02:59]} 5. O-O {[%clk 0:03:02]}  O-O {[%clk 0:03:00]} 6. b3 {[%clk 0:03:03]}  c6 {[%clk 0:03:00]} 7. Bb2 {[%clk 0:03:04]}  b6 {[%clk 0:03:00]} 8. c4 {[%clk 0:03:05]}  Ba6 {[%clk 0:03:00]} 9. Nbd2 {[%clk 0:03:04]}  Nbd7 {[%clk 0:03:01]} 10. Qc2 {[%clk 0:03:04]}  Rc8 {[%clk 0:03:00]} 11. e4 {[%clk 0:03:05]}  c5 {[%clk 0:03:00]} 12. e5 {[%clk 0:03:05]}  Ne8 {[%clk 0:03:00]} 13. dxc5 {[%clk 0:03:03]}  Nxc5 {[%clk 0:02:51]} 14. Rfd1 {[%clk 0:03:00]}  Nc7 {[%clk 0:02:42]} 15. Rac1 {[%clk 0:02:59]}  Qd7 {[%clk 0:02:26]} 16. h4 {[%clk 0:02:56]}  h6 {[%clk 0:02:26]} 17. Nf1 {[%clk 0:02:43]}  Rfd8 {[%clk 0:02:15]} 18. Ne3 {[%clk 0:02:43]}  Qe8 {[%clk 0:02:07]} 19. Ng4 {[%clk 0:02:25]}  dxc4 {[%clk 0:02:03]} 20. bxc4 {[%clk 0:02:24]}  Rxd1+ {[%clk 0:01:59]} 21. Rxd1 {[%clk 0:02:25]}  Rd8 {[%clk 0:01:55]} 22. Nd4 {[%clk 0:02:24]}  Qa4 {[%clk 0:01:24]} 23. Qe2 {[%clk 0:02:10]}  Bxc4 {[%clk 0:01:17]} 24. Qf3 {[%clk 0:01:56]}  Bd5 {[%clk 0:01:16]} 25. Qe2 {[%clk 0:01:40]}  Bxg2 {[%clk 0:01:15]} 26. Kxg2 {[%clk 0:01:40]}  Nb5 {[%clk 0:01:12]} 27. Nc6 {[%clk 0:01:25]}  Qxd1 {[%clk 0:01:01]} 28. Nxe7+ {[%clk 0:01:24]}  Kf8 {[%clk 0:01:01]} 29. Qxb5 {[%clk 0:01:02]}  Qxg4 {[%clk 0:00:50]} 30. Qc6 {[%clk 0:00:45]}  Kxe7 {[%clk 0:00:47]} 31. f3 {[%clk 0:00:44]}  Rd2+ {[%clk 0:00:45]} 0-1


[Site "https://www.chess.com"]

[Event "Titled Tuesday Blitz March 28 Early 2023"]
[White "Torres Dominguez, David"]
[Black "Meunier-Pion, Jean"]
[WhiteFideId "2220857"]
[BlackFideId "20685327"]
[WhiteElo "1999"]
[BlackElo "2124"]
[Result "1-0"]
[Round "11"]
[TimeControl "180+2"]
[Date "2023.03.28"]
[WhiteClock "0:00:13"]
[BlackClock "0:00:21"]

1. e4 {[%clk 0:02:59]}  c5 {[%clk 0:02:58]} 2. Nc3 {[%clk 0:02:58]}  d6 {[%clk 0:02:58]} 3. Nf3 {[%clk 0:02:56]}  Nf6 {[%clk 0:02:57]} 4. d4 {[%clk 0:02:56]}  cxd4 {[%clk 0:02:57]} 5. Nxd4 {[%clk 0:02:57]}  a6 {[%clk 0:02:57]} 6. f4 {[%clk 0:02:56]}  e5 {[%clk 0:02:56]} 7. Nf3 {[%clk 0:02:56]}  Nbd7 {[%clk 0:02:54]} 8. a4 {[%clk 0:02:55]}  Be7 {[%clk 0:02:52]} 9. Bd3 {[%clk 0:02:53]}  O-O {[%clk 0:02:52]} 10. O-O {[%clk 0:02:52]}  exf4 {[%clk 0:02:47]} 11. Bxf4 {[%clk 0:02:51]}  Qb6+ {[%clk 0:02:47]} 12. Kh1 {[%clk 0:02:49]}  Qxb2 {[%clk 0:02:47]} 13. Qe1 {[%clk 0:02:45]}  Qb6 {[%clk 0:02:40]} 14. Rb1 {[%clk 0:02:35]}  Qd8 {[%clk 0:02:34]} 15. Nh4 {[%clk 0:02:17]}  Nc5 {[%clk 0:02:29]} 16. Nf3 {[%clk 0:02:11]}  Bd7 {[%clk 0:02:18]} 17. Nd4 {[%clk 0:02:09]}  Re8 {[%clk 0:02:12]} 18. Bg5 {[%clk 0:01:58]}  Nfxe4 {[%clk 0:01:49]} 19. Bxe7 {[%clk 0:01:48]}  Qxe7 {[%clk 0:01:49]} 20. Nxe4 {[%clk 0:01:43]}  Nxe4 {[%clk 0:01:49]} 21. Rxb7 {[%clk 0:01:42]}  Nc5 {[%clk 0:01:35]} 22. Qxe7 {[%clk 0:01:42]}  Rxe7 {[%clk 0:01:36]} 23. Rc7 {[%clk 0:01:34]}  Rae8 {[%clk 0:01:07]} 24. Nc6 {[%clk 0:01:25]}  Re1 {[%clk 0:00:57]} 25. Kg1 {[%clk 0:01:24]}  Rxf1+ {[%clk 0:00:45]} 26. Kxf1 {[%clk 0:01:24]}  Kf8 {[%clk 0:00:23]} 27. Bxa6 {[%clk 0:00:58]}  Be6 {[%clk 0:00:05]} 28. Bb5 {[%clk 0:00:55]}  Ra8 {[%clk 0:00:04]} 29. Nd4 {[%clk 0:00:47]}  Bd5 {[%clk 0:00:03]} 30. Nf5 {[%clk 0:00:43]}  Nxa4 {[%clk 0:00:03]} 31. Bxa4 {[%clk 0:00:37]}  Be6 {[%clk 0:00:03]} 32. Bd7 {[%clk 0:00:31]}  Ra1+ {[%clk 0:00:03]} 33. Kf2 {[%clk 0:00:30]}  Bxf5 {[%clk 0:00:03]} 34. Bxf5 {[%clk 0:00:30]}  g6 {[%clk 0:00:04]} 35. Bd3 {[%clk 0:00:30]}  Kg7 {[%clk 0:00:04]} 36. Rc6 {[%clk 0:00:29]}  Ra5 {[%clk 0:00:04]} 37. Rxd6 {[%clk 0:00:29]}  h5 {[%clk 0:00:05]} 38. Rd4 {[%clk 0:00:29]}  Rc5 {[%clk 0:00:05]} 39. h4 {[%clk 0:00:29]}  Re5 {[%clk 0:00:06]} 40. g3 {[%clk 0:00:28]}  f6 {[%clk 0:00:05]} 41. Rd7+ {[%clk 0:00:27]}  Kh6 {[%clk 0:00:06]} 42. Rd6 {[%clk 0:00:26]}  Kg7 {[%clk 0:00:06]} 43. Rc6 {[%clk 0:00:25]}  g5 {[%clk 0:00:07]} 44. hxg5 {[%clk 0:00:24]}  fxg5 {[%clk 0:00:07]} 45. Kf3 {[%clk 0:00:24]}  h4 {[%clk 0:00:05]} 46. gxh4 {[%clk 0:00:21]}  gxh4 {[%clk 0:00:06]} 47. Rg6+ {[%clk 0:00:20]}  Kf7 {[%clk 0:00:06]} 48. Rh6 {[%clk 0:00:20]}  Ke7 {[%clk 0:00:02]} 49. Rxh4 {[%clk 0:00:17]}  Kd6 {[%clk 0:00:03]} 50. Rd4+ {[%clk 0:00:17]}  Kc5 {[%clk 0:00:03]} 51. Re4 {[%clk 0:00:17]}  Rh5 {[%clk 0:00:03]} 52. Kf4 {[%clk 0:00:15]}  Rh4+ {[%clk 0:00:03]} 53. Ke3 {[%clk 0:00:14]}  Rh3+ {[%clk 0:00:04]} 54. Kd2 {[%clk 0:00:14]}  Rg3 {[%clk 0:00:03]} 55. Kc3 {[%clk 0:00:13]}  Rh3 {[%clk 0:00:03]} 56. Re5+ {[%clk 0:00:12]}  Kd6 {[%clk 0:00:04]} 57. Rf5 {[%clk 0:00:12]}  Rh4 {[%clk 0:00:03]} 58. Rf3 {[%clk 0:00:11]}  Kc5 {[%clk 0:00:03]} 59. Re3 {[%clk 0:00:10]}  Rg4 {[%clk 0:00:03]} 60. Re4 {[%clk 0:00:11]}  Rg3 {[%clk 0:00:02]} 61. Re5+ {[%clk 0:00:10]}  Kd6 {[%clk 0:00:03]} 62. Rb5 {[%clk 0:00:10]}  Kc6 {[%clk 0:00:03]} 63. Rb4 {[%clk 0:00:10]}  Kc5 {[%clk 0:00:02]} 64. Rc4+ {[%clk 0:00:10]}  Kd5 {[%clk 0:00:03]} 65. Kb4 {[%clk 0:00:11]}  Rg1 {[%clk 0:00:02]} 66. Be4+ {[%clk 0:00:10]}  Kd6 {[%clk 0:00:02]} 67. Bd3 {[%clk 0:00:07]}  Re1 {[%clk 0:00:02]} 68. Kc3 {[%clk 0:00:07]}  Rg1 {[%clk 0:00:03]} 69. Rh4 {[%clk 0:00:06]}  Rg5 {[%clk 0:00:02]} 70. Be2 {[%clk 0:00:05]}  Kc5 {[%clk 0:00:03]} 71. Rh5 {[%clk 0:00:06]}  Rxh5 {[%clk 0:00:03]} 72. Bxh5 {[%clk 0:00:06]}  Kd5 {[%clk 0:00:04]} 73. Be2 {[%clk 0:00:06]}  Kc5 {[%clk 0:00:05]} 74. Bd3 {[%clk 0:00:07]}  Kd6 {[%clk 0:00:06]} 75. Be2 {[%clk 0:00:06]}  Kc5 {[%clk 0:00:07]} 76. Kd2 {[%clk 0:00:07]}  Kd5 {[%clk 0:00:08]} 77. c3 {[%clk 0:00:07]}  Kc5 {[%clk 0:00:08]} 78. Kd3 {[%clk 0:00:08]}  Kd5 {[%clk 0:00:09]} 79. c4+ {[%clk 0:00:08]}  Kc5 {[%clk 0:00:10]} 80. Kc3 {[%clk 0:00:08]}  Kd6 {[%clk 0:00:11]} 81. Kd4 {[%clk 0:00:09]}  Kc6 {[%clk 0:00:12]} 82. c5 {[%clk 0:00:09]}  Kd7 {[%clk 0:00:12]} 83. Bf3 {[%clk 0:00:10]}  Kc7 {[%clk 0:00:13]} 84. Kd5 {[%clk 0:00:10]}  Kd7 {[%clk 0:00:14]} 85. c6+ {[%clk 0:00:11]}  Kc7 {[%clk 0:00:15]} 86. Kc5 {[%clk 0:00:11]}  Kc8 {[%clk 0:00:15]} 87. Kd6 {[%clk 0:00:12]}  Kd8 {[%clk 0:00:16]} 88. Bg4 {[%clk 0:00:12]}  Ke8 {[%clk 0:00:16]} 89. c7 {[%clk 0:00:13]}  Kf8 {[%clk 0:00:17]} 90. c8=Q+ {[%clk 0:00:12]}  Kg7 {[%clk 0:00:18]} 91. Qd7+ {[%clk 0:00:12]}  Kg6 {[%clk 0:00:18]} 92. Qf5+ {[%clk 0:00:12]}  Kh6 {[%clk 0:00:19]} 93. Qh5+ {[%clk 0:00:12]}  Kg7 {[%clk 0:00:19]} 94. Ke6 {[%clk 0:00:12]}  Kg8 {[%clk 0:00:19]} 95. Qf7+ {[%clk 0:00:12]}  Kh8 {[%clk 0:00:20]} 96. Qe7 {[%clk 0:00:12]}  Kg8 {[%clk 0:00:20]} 97. Kf6 {[%clk 0:00:13]}  Kh8 {[%clk 0:00:21]} 98. Qg7# {[%clk 0:00:13]} 1-0


[Site "https://www.chess.com"]

[Event "Titled Tuesday Blitz March 28 Early 2023"]
[White "Fabris, Alberto"]
[Black "Hirneise, Jens"]
[WhiteFideId "801348"]
[BlackFideId "24614734"]
[WhiteElo "2218"]
[BlackElo "2345"]
[Result "0-1"]
[Round "11"]
[TimeControl "180+2"]
[Date "2023.03.28"]
[WhiteClock "0:00:15"]
[BlackClock "0:00:11"]

1. e4 {[%clk 0:03:00]}  c6 {[%clk 0:02:59]} 2. d4 {[%clk 0:03:00]}  g6 {[%clk 0:02:59]} 3. c4 {[%clk 0:02:59]}  Bg7 {[%clk 0:02:59]} 4. Nc3 {[%clk 0:02:59]}  e5 {[%clk 0:02:58]} 5. d5 {[%clk 0:02:54]}  c5 {[%clk 0:02:58]} 6. Nf3 {[%clk 0:02:53]}  d6 {[%clk 0:02:58]} 7. Be2 {[%clk 0:02:53]}  Ne7 {[%clk 0:02:58]} 8. O-O {[%clk 0:02:52]}  O-O {[%clk 0:02:59]} 9. Ne1 {[%clk 0:02:50]}  h6 {[%clk 0:03:00]} 10. Nd3 {[%clk 0:02:50]}  f5 {[%clk 0:03:00]} 11. f3 {[%clk 0:02:48]}  f4 {[%clk 0:03:00]} 12. Bd2 {[%clk 0:02:42]}  g5 {[%clk 0:03:00]} 13. h3 {[%clk 0:02:41]}  h5 {[%clk 0:02:59]} 14. Nf2 {[%clk 0:02:41]}  Nd7 {[%clk 0:02:58]} 15. a3 {[%clk 0:02:41]}  Nf6 {[%clk 0:02:56]} 16. b4 {[%clk 0:02:41]}  b6 {[%clk 0:02:57]} 17. bxc5 {[%clk 0:02:38]}  bxc5 {[%clk 0:02:58]} 18. Rb1 {[%clk 0:02:38]}  Rf7 {[%clk 0:02:45]} 19. Qa4 {[%clk 0:02:29]}  Bf8 {[%clk 0:02:33]} 20. Nb5 {[%clk 0:02:28]}  Ng6 {[%clk 0:02:29]} 21. Ba5 {[%clk 0:02:27]}  Qe8 {[%clk 0:02:26]} 22. Qc2 {[%clk 0:02:20]}  g4 {[%clk 0:02:17]} 23. fxg4 {[%clk 0:02:00]}  hxg4 {[%clk 0:02:12]} 24. hxg4 {[%clk 0:02:00]}  f3 {[%clk 0:01:17]} 25. Bxf3 {[%clk 0:01:52]}  Nh4 {[%clk 0:01:12]} 26. Nc7 {[%clk 0:01:44]}  Qd8 {[%clk 0:01:09]} 27. Nxa8 {[%clk 0:01:28]}  Qxa5 {[%clk 0:01:09]} 28. Rb8 {[%clk 0:01:25]}  Bd7 {[%clk 0:00:44]} 29. Qc1 {[%clk 0:01:17]}  Kg7 {[%clk 0:00:26]} 30. Qg5+ {[%clk 0:01:11]}  Ng6 {[%clk 0:00:26]} 31. Rfb1 {[%clk 0:00:48]}  Nh7 {[%clk 0:00:26]} 32. Qd8 {[%clk 0:00:47]}  Qd2 {[%clk 0:00:21]} 33. Nc7 {[%clk 0:00:44]}  Ng5 {[%clk 0:00:19]} 34. Ne6+ {[%clk 0:00:42]}  Bxe6 {[%clk 0:00:19]} 35. dxe6 {[%clk 0:00:42]}  Nxf3+ {[%clk 0:00:17]} 36. gxf3 {[%clk 0:00:40]}  Rxf3 {[%clk 0:00:17]} 37. Rf1 {[%clk 0:00:30]}  Rg3+ {[%clk 0:00:13]} 38. Kh2 {[%clk 0:00:29]}  Qf4 {[%clk 0:00:11]} 39. Qxf8+ {[%clk 0:00:24]}  Nxf8 {[%clk 0:00:11]} 40. Nh3 {[%clk 0:00:17]}  Rxh3+ {[%clk 0:00:08]} 41. Kxh3 {[%clk 0:00:17]}  Qxf1+ {[%clk 0:00:09]} 42. Kg3 {[%clk 0:00:17]}  Nxe6 {[%clk 0:00:09]} 43. Rb7+ {[%clk 0:00:17]}  Kg6 {[%clk 0:00:10]} 44. Rxa7 {[%clk 0:00:17]}  Qf4+ {[%clk 0:00:10]} 45. Kg2 {[%clk 0:00:17]}  Qxe4+ {[%clk 0:00:10]} 46. Kf2 {[%clk 0:00:17]}  Nf4 {[%clk 0:00:11]} 47. Ra6 {[%clk 0:00:15]}  Qe2+ {[%clk 0:00:11]} 48. Kg3 {[%clk 0:00:15]}  Qg2+ {[%clk 0:00:11]} 49. Kh4 {[%clk 0:00:15]}  Qh2# {[%clk 0:00:11]} 0-1


[Site "https://www.chess.com"]

[Event "Titled Tuesday Blitz March 28 Early 2023"]
[White "Gatterer, Florian"]
[Black "Qashashvili, Alexandre"]
[WhiteFideId "811688"]
[BlackFideId "13600842"]
[WhiteElo "2221"]
[BlackElo "2405"]
[Result "1/2-1/2"]
[Round "11"]
[TimeControl "180+2"]
[Date "2023.03.28"]
[WhiteClock "0:02:43"]
[BlackClock "0:02:43"]

1. e4 {[%clk 0:03:00]}  c6 {[%clk 0:03:00]} 2. d4 {[%clk 0:02:58]}  d5 {[%clk 0:03:01]} 3. e5 {[%clk 0:02:58]}  Bf5 {[%clk 0:02:57]} 4. Nf3 {[%clk 0:02:57]}  e6 {[%clk 0:02:57]} 5. Be2 {[%clk 0:02:57]}  h6 {[%clk 0:02:57]} 6. c3 {[%clk 0:02:56]}  c5 {[%clk 0:02:56]} 7. Be3 {[%clk 0:02:53]}  Nd7 {[%clk 0:02:48]} 8. O-O {[%clk 0:02:52]}  cxd4 {[%clk 0:02:45]} 9. cxd4 {[%clk 0:02:48]}  Bb4 {[%clk 0:02:43]} 10. a3 {[%clk 0:02:45]}  Ba5 {[%clk 0:02:43]} 11. b4 {[%clk 0:02:43]} 1/2-1/2


[Site "https://www.chess.com"]

[Event "Titled Tuesday Blitz March 28 Early 2023"]
[White "Tagliata"]
[Black "Van Osch, Mees"]
[BlackFideId "1035967"]
[WhiteElo "2224"]
[BlackElo "2324"]
[Result "0-1"]
[Round "11"]
[TimeControl "180+2"]
[Date "2023.03.28"]
[WhiteClock "0:00:10"]
[BlackClock "0:00:30"]

1. e4 {[%clk 0:02:56]}  c5 {[%clk 0:02:46]} 2. Nf3 {[%clk 0:02:55]}  e6 {[%clk 0:02:40]} 3. d4 {[%clk 0:02:54]}  cxd4 {[%clk 0:02:41]} 4. Nxd4 {[%clk 0:02:55]}  Nc6 {[%clk 0:02:34]} 5. Nc3 {[%clk 0:02:51]}  Bc5 {[%clk 0:02:34]} 6. Nb3 {[%clk 0:02:36]}  Bb4 {[%clk 0:02:32]} 7. Bd3 {[%clk 0:02:13]}  Nf6 {[%clk 0:02:26]} 8. Bd2 {[%clk 0:01:59]}  O-O {[%clk 0:02:25]} 9. a3 {[%clk 0:01:59]}  Be7 {[%clk 0:02:24]} 10. O-O {[%clk 0:01:58]}  d5 {[%clk 0:02:25]} 11. exd5 {[%clk 0:01:51]}  exd5 {[%clk 0:02:26]} 12. Bf4 {[%clk 0:01:43]}  Bg4 {[%clk 0:02:25]} 13. Qd2 {[%clk 0:01:40]}  Re8 {[%clk 0:02:23]} 14. Rfe1 {[%clk 0:01:39]}  d4 {[%clk 0:02:17]} 15. Ne4 {[%clk 0:01:37]}  Nxe4 {[%clk 0:02:17]} 16. Bxe4 {[%clk 0:01:38]}  Bf6 {[%clk 0:02:13]} 17. h3 {[%clk 0:01:36]}  Bh5 {[%clk 0:02:11]} 18. Kh1 {[%clk 0:01:14]}  Bg6 {[%clk 0:02:11]} 19. Bxg6 {[%clk 0:01:13]}  hxg6 {[%clk 0:02:12]} 20. Kg1 {[%clk 0:01:12]}  b6 {[%clk 0:02:09]} 21. Rad1 {[%clk 0:01:11]}  Qd7 {[%clk 0:02:08]} 22. Rxe8+ {[%clk 0:01:04]}  Rxe8 {[%clk 0:02:08]} 23. c3 {[%clk 0:01:03]}  Qd5 {[%clk 0:01:46]} 24. Nxd4 {[%clk 0:01:01]}  Bxd4 {[%clk 0:01:37]} 25. cxd4 {[%clk 0:01:02]}  Rd8 {[%clk 0:01:37]} 26. Be3 {[%clk 0:01:01]}  Ne7 {[%clk 0:01:34]} 27. Qc3 {[%clk 0:00:55]}  Rd7 {[%clk 0:01:25]} 28. Rc1 {[%clk 0:00:47]}  Nf5 {[%clk 0:01:25]} 29. Qc8+ {[%clk 0:00:46]}  Kh7 {[%clk 0:01:26]} 30. Rc7 {[%clk 0:00:42]}  Rd8 {[%clk 0:01:17]} 31. Qb7 {[%clk 0:00:37]}  Nxe3 {[%clk 0:00:53]} 32. fxe3 {[%clk 0:00:35]}  Qb3 {[%clk 0:00:49]} 33. Rxf7 {[%clk 0:00:31]}  Qxe3+ {[%clk 0:00:49]} 34. Kh2 {[%clk 0:00:26]}  Qxd4 {[%clk 0:00:48]} 35. Qf3 {[%clk 0:00:19]}  Qxb2 {[%clk 0:00:46]} 36. Qf4 {[%clk 0:00:18]}  Rd5 {[%clk 0:00:43]} 37. Rf8 {[%clk 0:00:17]}  Qe5 {[%clk 0:00:41]} 38. Qxe5 {[%clk 0:00:17]}  Rxe5 {[%clk 0:00:42]} 39. Ra8 {[%clk 0:00:18]}  Ra5 {[%clk 0:00:43]} 40. Kg3 {[%clk 0:00:14]}  Rxa3+ {[%clk 0:00:43]} 41. Kf4 {[%clk 0:00:15]}  Ra2 {[%clk 0:00:43]} 42. g3 {[%clk 0:00:14]}  b5 {[%clk 0:00:43]} 43. Ke4 {[%clk 0:00:14]}  b4 {[%clk 0:00:43]} 44. Kd4 {[%clk 0:00:14]}  a5 {[%clk 0:00:40]} 45. Kc4 {[%clk 0:00:14]}  Ra3 {[%clk 0:00:39]} 46. Kb5 {[%clk 0:00:15]}  b3 {[%clk 0:00:38]} 47. Kc4 {[%clk 0:00:15]}  b2 {[%clk 0:00:37]} 48. Rb8 {[%clk 0:00:16]}  Ra4+ {[%clk 0:00:37]} 49. Kc3 {[%clk 0:00:15]}  Rb4 {[%clk 0:00:38]} 50. Rxb4 {[%clk 0:00:14]}  axb4+ {[%clk 0:00:37]} 51. Kxb2 {[%clk 0:00:15]}  Kh6 {[%clk 0:00:27]} 52. Kb3 {[%clk 0:00:16]}  Kg5 {[%clk 0:00:28]} 53. Kxb4 {[%clk 0:00:16]}  Kf5 {[%clk 0:00:29]} 54. Kc3 {[%clk 0:00:16]}  Ke4 {[%clk 0:00:29]} 55. g4 {[%clk 0:00:11]}  g5 {[%clk 0:00:26]} 56. Kc4 {[%clk 0:00:10]}  Kf4 {[%clk 0:00:26]} 57. Kd5 {[%clk 0:00:10]}  Kg3 {[%clk 0:00:27]} 58. Ke5 {[%clk 0:00:10]}  Kxh3 {[%clk 0:00:26]} 59. Kf5 {[%clk 0:00:11]}  Kh4 {[%clk 0:00:26]} 60. Ke4 {[%clk 0:00:06]}  Kxg4 {[%clk 0:00:27]} 61. Ke3 {[%clk 0:00:07]}  Kg3 {[%clk 0:00:27]} 62. Ke2 {[%clk 0:00:07]}  Kg2 {[%clk 0:00:28]} 63. Ke3 {[%clk 0:00:08]}  g6 {[%clk 0:00:28]} 64. Ke4 {[%clk 0:00:08]}  g4 {[%clk 0:00:29]} 65. Kf4 {[%clk 0:00:08]}  g3 {[%clk 0:00:29]} 66. Kg5 {[%clk 0:00:09]}  Kf2 {[%clk 0:00:30]} 67. Kxg6 {[%clk 0:00:10]}  g2 {[%clk 0:00:30]} 0-1


[Site "https://www.chess.com"]

[Event "Titled Tuesday Blitz March 28 Early 2023"]
[White "Rose, Felix"]
[Black "BenchGM"]
[WhiteFideId "5105722"]
[WhiteElo "2039"]
[BlackElo "2358"]
[Result "0-1"]
[Round "11"]
[TimeControl "180+2"]
[Date "2023.03.28"]
[WhiteClock "0:00:17"]
[BlackClock "0:00:14"]

1. d4 {[%clk 0:03:00]}  Nf6 {[%clk 0:02:59]} 2. Bf4 {[%clk 0:02:59]}  b6 {[%clk 0:02:58]} 3. Nc3 {[%clk 0:02:58]}  Bb7 {[%clk 0:02:58]} 4. f3 {[%clk 0:02:58]}  d5 {[%clk 0:02:47]} 5. Nb5 {[%clk 0:02:53]}  Na6 {[%clk 0:02:46]} 6. e3 {[%clk 0:02:43]}  e6 {[%clk 0:02:44]} 7. Bd3 {[%clk 0:02:38]}  Bb4+ {[%clk 0:02:35]} 8. c3 {[%clk 0:02:33]}  Be7 {[%clk 0:02:35]} 9. a4 {[%clk 0:02:32]}  O-O {[%clk 0:02:28]} 10. h4 {[%clk 0:02:27]}  c6 {[%clk 0:02:26]} 11. Na3 {[%clk 0:02:26]}  Bd6 {[%clk 0:02:25]} 12. Nh3 {[%clk 0:02:25]}  Nc7 {[%clk 0:02:23]} 13. Bxd6 {[%clk 0:02:22]}  Qxd6 {[%clk 0:02:22]} 14. f4 {[%clk 0:02:21]}  c5 {[%clk 0:02:18]} 15. Ng5 {[%clk 0:02:15]}  cxd4 {[%clk 0:02:12]} 16. cxd4 {[%clk 0:02:14]}  Qb4+ {[%clk 0:02:12]} 17. Qd2 {[%clk 0:02:14]}  Qxd2+ {[%clk 0:02:10]} 18. Kxd2 {[%clk 0:02:15]}  Ba6 {[%clk 0:02:09]} 19. Rhc1 {[%clk 0:02:03]}  Bxd3 {[%clk 0:02:06]} 20. Rxc7 {[%clk 0:02:03]}  Ba6 {[%clk 0:01:53]} 21. Rac1 {[%clk 0:02:00]}  h6 {[%clk 0:01:53]} 22. Nf3 {[%clk 0:02:00]}  Ne4+ {[%clk 0:01:53]} 23. Ke1 {[%clk 0:01:59]}  Rfc8 {[%clk 0:01:52]} 24. Rxc8+ {[%clk 0:01:58]}  Rxc8 {[%clk 0:01:52]} 25. Rxc8+ {[%clk 0:01:57]}  Bxc8 {[%clk 0:01:53]} 26. Nb5 {[%clk 0:01:57]}  Bd7 {[%clk 0:01:50]} 27. Nxa7 {[%clk 0:01:56]}  Bxa4 {[%clk 0:01:50]} 28. Ne5 {[%clk 0:01:52]}  f6 {[%clk 0:01:44]} 29. Nd3 {[%clk 0:01:44]}  Bd7 {[%clk 0:01:42]} 30. Nb4 {[%clk 0:01:26]}  Ng3 {[%clk 0:01:34]} 31. Kf2 {[%clk 0:01:15]}  Nf5 {[%clk 0:01:32]} 32. h5 {[%clk 0:01:12]}  Nd6 {[%clk 0:01:29]} 33. Nac6 {[%clk 0:01:02]}  Nc4 {[%clk 0:01:26]} 34. f5 {[%clk 0:00:56]}  Kf7 {[%clk 0:01:14]} 35. Nd8+ {[%clk 0:00:53]}  Ke7 {[%clk 0:01:12]} 36. Nxe6 {[%clk 0:00:53]}  Bxe6 {[%clk 0:01:12]} 37. fxe6 {[%clk 0:00:54]}  Kxe6 {[%clk 0:01:13]} 38. Nd3 {[%clk 0:00:51]}  Kf5 {[%clk 0:01:09]} 39. b3 {[%clk 0:00:47]}  Nd2 {[%clk 0:01:03]} 40. Nf4 {[%clk 0:00:43]}  Nxb3 {[%clk 0:00:52]} 41. Nxd5 {[%clk 0:00:43]}  b5 {[%clk 0:00:51]} 42. Nc3 {[%clk 0:00:40]}  Kg5 {[%clk 0:00:43]} 43. Nxb5 {[%clk 0:00:40]}  Kxh5 {[%clk 0:00:43]} 44. d5 {[%clk 0:00:40]}  Kg6 {[%clk 0:00:40]} 45. Kf3 {[%clk 0:00:39]}  Kf5 {[%clk 0:00:37]} 46. e4+ {[%clk 0:00:28]}  Ke5 {[%clk 0:00:36]} 47. g4 {[%clk 0:00:26]}  Nd2+ {[%clk 0:00:35]} 48. Ke3 {[%clk 0:00:26]}  Nxe4 {[%clk 0:00:36]} 49. Nd4 {[%clk 0:00:24]}  Nd6 {[%clk 0:00:34]} 50. Ne6 {[%clk 0:00:22]}  g6 {[%clk 0:00:29]} 51. Nf4 {[%clk 0:00:21]}  g5 {[%clk 0:00:27]} 52. Nh5 {[%clk 0:00:22]}  Ne8 {[%clk 0:00:22]} 53. Ng3 {[%clk 0:00:17]}  Nd6 {[%clk 0:00:20]} 54. Nh5 {[%clk 0:00:17]}  f5 {[%clk 0:00:20]} 55. gxf5 {[%clk 0:00:14]}  Nxf5+ {[%clk 0:00:21]} 56. Kf3 {[%clk 0:00:15]}  Kxd5 {[%clk 0:00:21]} 57. Nf6+ {[%clk 0:00:14]}  Ke5 {[%clk 0:00:20]} 58. Ng4+ {[%clk 0:00:14]}  Ke6 {[%clk 0:00:19]} 59. Nf2 {[%clk 0:00:13]}  h5 {[%clk 0:00:19]} 60. Ne4 {[%clk 0:00:13]}  g4+ {[%clk 0:00:18]} 61. Kf4 {[%clk 0:00:14]}  Nd4 {[%clk 0:00:17]} 62. Nf2 {[%clk 0:00:13]}  Kf6 {[%clk 0:00:16]} 63. Nxg4+ {[%clk 0:00:13]}  Kg6 {[%clk 0:00:14]} 64. Ne5+ {[%clk 0:00:14]}  Kh6 {[%clk 0:00:13]} 65. Nf3 {[%clk 0:00:14]}  Ne6+ {[%clk 0:00:13]} 66. Kg3 {[%clk 0:00:15]}  Kg6 {[%clk 0:00:14]} 67. Nh4+ {[%clk 0:00:14]}  Kg5 {[%clk 0:00:14]} 68. Ng2 {[%clk 0:00:15]}  Nd4 {[%clk 0:00:12]} 69. Nf4 {[%clk 0:00:15]}  Nf5+ {[%clk 0:00:12]} 70. Kh3 {[%clk 0:00:15]}  Kxf4 {[%clk 0:00:12]} 71. Kh2 {[%clk 0:00:16]}  Kg4 {[%clk 0:00:12]} 72. Kh1 {[%clk 0:00:16]}  Kh3 {[%clk 0:00:12]} 73. Kg1 {[%clk 0:00:17]}  Ng3 {[%clk 0:00:12]} 74. Kf2 {[%clk 0:00:17]}  Kh2 {[%clk 0:00:12]} 75. Kf3 {[%clk 0:00:17]}  h4 {[%clk 0:00:12]} 76. Kf2 {[%clk 0:00:16]}  h3 {[%clk 0:00:13]} 77. Kf3 {[%clk 0:00:16]}  Kg1 {[%clk 0:00:13]} 78. Kxg3 {[%clk 0:00:16]}  h2 {[%clk 0:00:14]} 79. Kf3 {[%clk 0:00:17]}  h1=Q+ {[%clk 0:00:14]} 0-1


[Site "https://www.chess.com"]